bitfinex-derivatives/quotes_SOLF0:USTF0_20250329
["timestamp","ask_amount","ask_price","bid_price","bid_amount"]
[1743261320237,7.9690984,126.36,126.35,28.18]
[1743261324648,7.9181,126.34,126.33,0.05192035]
[1743261324945,7.9181,126.34,126.33,28.23192035]
[1743261327949,7.9181,126.34,126.33,0.05192035]
[1743261328149,7.9181,126.34,126.33,28.23192035]
[1743261328851,7.9181,126.34,126.33,0.05192035]
[1743261329150,7.9181,126.34,126.33,28.23192035]
[1743261332956,14.43146182,126.34,126.33,28.23192035]
[1743261333158,6.51336182,126.34,126.31,28.18]
[1743261333353,6.51336182,126.34,126.28,14.43516182]
[1743261333554,6.51336182,126.34,126.29,28.18]
[1743261333953,7.9206,126.3,126.29,28.18]
[1743261334459,7.97194413,126.31,126.29,28.18]
[1743261336562,7.9206,126.3,126.29,28.18]
[1743261336961,0.05164413,126.31,126.29,28.18]
[1743261337464,7.97194413,126.31,126.29,28.18]
[1743261338063,7.97194413,126.31,126.29,36.1012]
[1743261338064,0.05164413,126.31,126.29,36.1012]
[1743261339766,0.05164413,126.31,126.3,7.9206]
[1743261341561,0.05164413,126.31,126.29,36.101]
[1743261342870,0.05164413,126.31,126.29,28.18]
[1743261343267,7.9206,126.3,126.29,28.18]
[1743261344768,7.9206,126.3,126.28,0.05420315]
[1743261344769,7.9212,126.29,126.28,28.23420315]
[1743261344970,7.9212,126.29,126.28,0.05420315]
[1743261351877,10.49736182,126.3,126.26,28.18]
[1743261352775,6.51336182,126.28,126.23,10.96875708]
[1743261352971,6.51336182,126.28,126.24,28.18]
[1743261353178,7.9243,126.25,126.24,28.23927811]
[1743261356081,7.9234,126.26,126.24,28.23927811]
[1743261356283,0.05444184,126.27,126.24,34.75263993]
[1743261356683,0.05444184,126.27,126.24,42.67673993]
[1743261357582,0.05444184,126.27,126.24,28.23927811]
[1743261358381,7.9235,126.26,126.24,28.23927811]
[1743261358977,7.97724184,126.27,126.24,28.23927811]
[1743261359378,0.05444184,126.27,126.24,28.23927811]
[1743261359782,7.9234,126.26,126.24,28.23927811]
[1743261360276,0.05444184,126.27,126.24,34.75263993]
[1743261360476,19.8,126.31,126.26,6.51336182]
[1743261360682,19.8,126.31,126.27,28.18]
[1743261360883,7.9209,126.3,126.27,36.1021]
[1743261361781,7.98126614,126.3,126.27,36.15287401]
[1743261362985,7.9213,126.29,126.27,36.15287401]
[1743261363182,0.06036614,126.3,126.27,36.15287401]
[1743261363583,7.98126614,126.3,126.27,36.15287401]
[1743261365587,0.06036614,126.3,126.27,28.23077401]
[1743261366087,7.98136614,126.3,126.27,36.15307401]
[1743261366887,7.9212,126.29,126.27,36.15307401]
[1743261367388,7.9212,126.29,126.27,28.23077401]
[1743261368787,7.9212,126.29,126.27,36.15327401]
[1743261369187,7.9212,126.29,126.27,28.23077401]
[1743261370490,7.98126614,126.3,126.27,36.15317401]
[1743261370883,0.06036614,126.3,126.28,6.51336182]
[1743261371191,0.06036614,126.3,126.29,7.9212]
[1743261371888,6.51336182,126.39,126.29,7.92]
[1743261372081,6.51336182,126.39,126.32,6.51336182]
[1743261372387,6.51336182,126.39,126.33,28.18]
[1743261372882,267.77336182,126.37,126.33,28.18]
[1743261373087,0.05589931,126.36,126.34,0.06082445]
[1743261373891,7.9175,126.35,126.34,0.06082445]
[1743261374693,7.9181,126.34,126.33,28.18]
[1743261375191,16.54416182,126.35,126.33,28.18]
[1743261375492,0.05589931,126.36,126.33,28.18]
[1743261375693,0.05589931,126.36,126.33,28.23049119]
[1743261375992,7.97319931,126.36,126.33,36.14919119]
[1743261376195,0.05589931,126.36,126.33,28.23049119]
[1743261376894,7.9179,126.35,126.33,28.23049119]
[1743261378786,7.9181,126.34,126.33,28.23049119]
[1743261382996,7.9181,126.34,126.33,0.05049119]
[1743261405613,5.04309572,126.34,126.28,43.95065699]
[1743261405817,6.51336182,126.31,126.28,43.95065699]
[1743261406019,6.51336182,126.31,126.28,72.11065699]
[1743261406718,7.9212,126.29,126.28,116.1117331]
[1743261406910,7.9212,126.29,126.28,116.16172942]
[1743261409616,7.9209,126.3,126.28,28.20999632]
[1743261409822,6.56479769,126.31,126.28,28.20999632]
[1743261411123,6.56479769,126.31,126.28,0.04999632]
[1743261411425,6.56479769,126.31,126.28,28.20999632]
[1743261411623,7.9212,126.29,126.28,28.20999632]
[1743261411817,7.9212,126.29,126.28,0.04999632]
[1743261413814,7.9208,126.3,126.28,0.04999632]
[1743261414615,14.48519769,126.31,126.28,0.04999632]
[1743261415024,6.56479769,126.31,126.28,0.04999632]
[1743261415226,7.9209,126.3,126.28,0.04999632]
[1743261416229,7.9212,126.29,126.28,0.04999632]
[1743261426427,7.9209,126.3,126.28,0.04999632]
[1743261426727,0.05143587,126.31,126.28,6.56335814]
[1743261427230,0.05143587,126.31,126.28,14.48485814]
[1743261427431,0.05143587,126.31,126.3,6.51336182]
[1743261427733,8.51746182,126.38,126.3,34.67336182]
[1743261427932,5.03511764,126.37,126.33,6.51336182]
[1743261428231,8.51746182,126.38,126.34,28.16]
[1743261428431,5.0341229,126.37,126.34,28.16]
[1743261428636,7.9172,126.36,126.34,28.16]
[1743261428826,25.29604133,126.36,126.34,28.16]
[1743261429128,7.9175,126.35,126.34,28.21993915]
[1743261431522,25.29604133,126.36,126.34,28.21993915]
[1743261433233,7.9175,126.35,126.34,28.21993915]
[1743261437835,5.03173233,126.35,126.28,43.89695462]
[1743261438038,6.51336182,126.32,126.29,28.14]
[1743261439035,6.57261564,126.32,126.29,28.19639145]
[1743261440938,7.9206,126.3,126.29,28.19639145]
[1743261444645,0.05925382,126.32,126.29,28.19639145]
[1743261444938,0.05925382,126.32,126.29,34.70975327]
[1743261447431,0.05925382,126.32,126.29,42.63045327]
[1743261448342,0.05925382,126.32,126.3,7.9205]
[1743261450739,7.97865382,126.32,126.29,42.63065327]
[1743261451043,0.05925382,126.32,126.29,34.70975327]
[1743261451843,7.9203,126.31,126.29,34.70975327]
[1743261453143,7.9203,126.31,126.29,42.63095327]
[1743261453543,7.9203,126.31,126.29,34.70975327]
[1743261454146,0.05925382,126.32,126.29,34.70975327]
[1743261454345,0.05925382,126.32,126.29,28.19639145]
[1743261454744,7.9206,126.3,126.29,28.19639145]
[1743261457352,14.43396182,126.3,126.29,0.05639145]
[1743261457542,7.9229,126.27,126.25,43.89695462]
[1743261457740,7.9229,126.27,126.26,28.14]
[1743261460650,7.97287946,126.28,126.26,28.14]
[1743261462149,0.05077946,126.28,126.26,28.14]
[1743261462350,0.05077946,126.28,126.27,6.51336182]
[1743261463250,0.05077946,126.28,126.27,14.43586182]
[1743261466755,0.05077946,126.28,126.27,15.85495315]
[1743261467358,7.9196,126.32,126.3,7.9205]
[1743261467659,2.1188,126.35,126.31,28.14]
[1743261467852,7.9179,126.35,126.32,7.9193]
[1743261468253,17.32,126.36,126.31,34.65336182]
[1743261468453,25.2374,126.36,126.32,7.919]
[1743261468648,0.06086954,126.35,126.32,7.97850277]
[1743261469055,7.97866954,126.35,126.32,7.97850277]
[1743261469552,7.97866954,126.35,126.32,0.05950277]
[1743261470658,7.9182,126.34,126.32,0.05950277]
[1743261470958,0.06086954,126.35,126.32,0.05950277]
[1743261471460,7.9187,126.33,126.32,0.05950277]
[1743261478061,7.9187,126.33,126.32,28.19950277]
[1743261479762,0.06086954,126.35,126.32,28.19950277]
[1743261480165,7.97886954,126.35,126.32,28.19950277]
[1743261481664,7.9181,126.34,126.32,28.19950277]
[1743261483969,7.9187,126.33,126.32,28.19950277]
[1743261486269,26.6684,126.34,126.32,28.19950277]
[1743261488767,45.9084,126.34,126.32,28.19950277]
[1743261489872,7.9187,126.33,126.32,28.19950277]
[1743261492076,45.9084,126.34,126.32,28.19950277]
[1743261492984,45.9084,126.34,126.32,36.11880277]
[1743261493774,37.99,126.34,126.32,36.11880277]
[1743261494279,37.99,126.34,126.33,14.43206182]
[1743261496783,37.99,126.34,126.33,6.51336182]
[1743261497080,37.99,126.34,126.32,28.19950277]
[1743261497986,7.9187,126.33,126.32,28.19950277]
[1743261499485,7.9187,126.33,126.32,0.05950277]
[1743261499688,7.9187,126.33,126.32,28.19950277]
[1743261505689,45.9083,126.34,126.32,28.19950277]
[1743261506192,7.9187,126.33,126.32,28.19950277]
[1743261509795,45.9084,126.34,126.32,28.19950277]
[1743261510200,45.9084,126.34,126.32,36.11880277]
[1743261510897,45.9084,126.34,126.32,28.19950277]
[1743261511093,7.9187,126.33,126.32,28.19950277]
[1743261511694,45.9083,126.34,126.32,28.19950277]
[1743261514500,45.9083,126.34,126.32,36.11880277]
[1743261517502,45.9083,126.34,126.32,28.19950277]
[1743261522204,7.9187,126.33,126.32,28.19950277]
[1743261523503,45.9084,126.34,126.32,28.19950277]
[1743261528206,7.9187,126.33,126.32,28.19950277]
[1743261530694,37.99,126.34,126.32,28.19950277]
[1743261530695,45.9084,126.34,126.32,28.19950277]
[1743261533606,7.9187,126.33,126.32,28.19950277]
[1743261533905,5.05250871,126.33,126.3,43.91868814]
[1743261534200,7.92,126.31,126.3,40.65188814]
[1743261534507,12.97250871,126.31,126.3,120.7763924]
[1743261535404,12.96881256,126.31,126.3,120.7763924]
[1743261538310,12.96548065,126.31,126.3,120.7763924]
[1743261538511,7.92,126.31,126.3,120.7763924]
[1743261539306,7.92,126.31,126.29,0.05957196]
[1743261540111,0.05857277,126.32,126.29,0.05957196]
[1743261540305,5.04389346,126.31,126.29,0.05957196]
[1743261540506,0.05857277,126.32,126.29,0.05957196]
[1743261540807,5.04442175,126.31,126.29,0.05957196]
[1743261541005,0.05857277,126.32,126.29,0.05957196]
[1743261541207,5.04441483,126.31,126.29,0.05957196]
[1743261541406,0.05857277,126.32,126.29,0.05957196]
[1743261541607,5.04414933,126.31,126.29,0.05957196]
[1743261541811,0.05857277,126.32,126.29,0.05957196]
[1743261542012,5.04413998,126.31,126.29,0.05957196]
[1743261542320,7.9206,126.3,126.29,0.05957196]
[1743261549321,0.05857277,126.32,126.29,0.05957196]
[1743261549619,0.05857277,126.32,126.3,28.12]
[1743261549918,0.05857277,126.32,126.3,36.0403]
[1743261550512,0.05857277,126.32,126.31,7.92]
[1743261554012,0.05857277,126.32,126.31,14.43336182]
[1743261559120,0.05857277,126.32,126.31,6.51336182]
[1743261562918,0.05857277,126.32,126.31,14.43336182]
[1743261568133,22.76,126.33,126.32,7.9194]
[1743261569734,0.05561836,126.34,126.33,7.9187]
[1743261569937,0.05561836,126.34,126.33,42.55206182]
[1743261570738,25.10617253,126.48,126.33,406.55336182]
[1743261570933,6.51336182,126.46,126.4,6.51336182]
[1743261571132,6.51336182,126.46,126.4,34.63336182]
[1743261571427,7.9135,126.42,126.4,34.63336182]
[1743261571830,7.96583186,126.42,126.4,34.68602433]
[1743261572032,0.05233186,126.42,126.4,34.68602433]
[1743261572633,0.05233186,126.42,126.41,7.9137]
[1743261573034,0.05233186,126.42,126.4,34.68602433]
[1743261573232,0.05233186,126.42,126.4,42.59992433]
[1743261574033,0.05233186,126.42,126.41,7.9137]
[1743261583041,0.05233186,126.42,126.4,34.68602433]
[1743261583643,14.51,126.47,126.4,34.68602433]
[1743261583849,14.51,126.47,126.44,6.51336182]
[1743261584047,14.51,126.47,126.45,28.1]
[1743261584347,2.017,126.49,126.45,28.1]
[1743261584648,6.51336182,126.48,126.45,28.1]
[1743261584848,7.9104,126.47,126.46,0.05915241]
[1743261587740,0.05572978,126.48,126.46,0.05915241]
[1743261588549,0.05572978,126.48,126.46,370.57251423]
[1743261589346,0.05572978,126.48,126.47,7.91]
[1743261592457,0.05572978,126.48,126.46,6.57251423]
[1743261593954,0.05572978,126.48,126.47,28.08]
[1743261594155,0.05572978,126.48,126.47,35.99]
[1743261595259,0.05572978,126.48,126.47,28.08]
[1743261600559,0.05572978,126.48,126.46,28.13915241]
[1743261600862,7.91,126.47,126.46,28.13915241]
[1743261601059,0.05572978,126.48,126.44,28.08]
[1743261601261,2.22252978,126.48,126.44,28.08]
[1743261601562,7.9109,126.46,126.44,28.08]
[1743261601866,2.22252978,126.48,126.44,28.08]
[1743261602059,7.9112,126.45,126.44,28.08]
[1743261602457,7.9112,126.45,126.43,0.05181797]
[1743261602862,7.96264896,126.45,126.43,28.13181797]
[1743261607070,0.05144896,126.45,126.43,28.13181797]
[1743261608871,7.96264896,126.45,126.43,28.13181797]
[1743261610773,7.9118,126.44,126.43,28.13181797]
[1743261611176,7.96294896,126.45,126.43,28.13181797]
[1743261612571,7.9118,126.44,126.43,0.05181797]
[1743261621782,12.94012684,126.44,126.43,0.05181797]
[1743261622084,12.94023933,126.44,126.43,0.05181797]
[1743261622283,7.9143,126.4,126.39,28.08]
[1743261622680,6.51336182,126.42,126.36,43.77259675]
[1743261622977,7.9154,126.39,126.37,28.08]
[1743261623584,0.05752679,126.39,126.37,28.13363449]
[1743261623984,0.05752679,126.39,126.37,34.64699631]
[1743261624186,7.9124,126.44,126.37,34.64699631]
[1743261624479,6.51336182,126.46,126.4,6.51336182]
[1743261624685,5.02499102,126.45,126.41,28.08]
[1743261624884,6.51336182,126.46,126.41,28.08]
[1743261625185,5.02494674,126.45,126.41,28.08]
[1743261625376,0.0583947,126.44,126.42,0.05663292]
[1743261625583,7.9128,126.43,126.42,0.05663292]
[1743261632190,0.0583947,126.44,126.42,0.05663292]
[1743261634793,0.0583947,126.44,126.42,7.96963292]
[1743261635699,7.9702947,126.44,126.42,7.96963292]
[1743261636500,7.9125,126.43,126.42,0.05663292]
[1743261638797,7.9704947,126.44,126.42,0.05663292]
[1743261639206,0.0583947,126.44,126.42,14.48249474]
[1743261639406,0.0583947,126.44,126.42,18.62329474]
[1743261640206,0.0583947,126.44,126.43,7.9125]
[1743261641506,260.92,126.48,126.42,10.71079474]
[1743261641701,268.8297,126.48,126.44,6.51336182]
[1743261641898,268.8297,126.48,126.45,28.08]
[1743261642302,7.9102,126.47,126.45,28.08]
[1743261642701,7.9609397,126.47,126.45,28.13443756]
[1743261645310,7.9106,126.46,126.45,28.13443756]
[1743261645609,14.42396182,126.46,126.45,0.05443756]
[1743261645819,19.45891793,126.46,126.45,0.05443756]
[1743261646210,19.45915679,126.46,126.45,0.05443756]
[1743261648216,19.45976838,126.46,126.45,0.05443756]
[1743261651917,19.46000828,126.46,126.45,0.05443756]
[1743261657419,19.46051084,126.46,126.45,0.05443756]
[1743261658625,19.46048734,126.46,126.45,0.05443756]
[1743261659123,12.94712552,126.46,126.45,0.05443756]
[1743261660926,19.46048734,126.46,126.45,0.05443756]
[1743261661626,7.9125,126.43,126.42,28.08]
[1743261661923,21.72,126.44,126.39,384.72238064]
[1743261662226,21.72,126.44,126.4,28.08]
[1743261662428,5.03734771,126.43,126.39,10.83358064]
[1743261662629,7.9137,126.42,126.4,28.08]
[1743261662825,7.97072109,126.42,126.4,28.1374071]
[1743261663128,7.9137,126.41,126.4,28.1374071]
[1743261664630,7.9137,126.41,126.4,0.0574071]
[1743261668235,5.03675552,126.41,126.36,402.91358064]
[1743261668437,6.57038291,126.42,126.36,402.91358064]
[1743261668634,5.03578448,126.41,126.36,38.91358064]
[1743261668828,7.9161,126.38,126.36,38.91358064]
[1743261669033,7.9161,126.38,126.36,28.08]
[1743261669432,7.97688628,126.38,126.36,28.14066078]
[1743261669631,7.9162,126.37,126.36,28.14066078]
[1743261670032,7.97668628,126.38,126.36,28.14066078]
[1743261670338,7.97668628,126.38,126.36,0.06066078]
[1743261671140,0.06078628,126.38,126.36,0.06066078]
[1743261671941,0.06078628,126.38,126.36,7.97706078]
[1743261673437,0.06078628,126.38,126.36,36.05706078]
[1743261673643,0.06078628,126.38,126.36,28.14066078]
[1743261674437,0.06078628,126.38,126.36,36.05736078]
[1743261675540,0.06078628,126.38,126.36,28.14066078]
[1743261675740,7.97648628,126.38,126.36,28.14066078]
[1743261675939,0.06078628,126.38,126.36,28.14066078]
[1743261676342,0.06078628,126.38,126.36,36.05716078]
[1743261676538,0.06078628,126.38,126.36,34.6540226]
[1743261677539,0.06078628,126.38,126.37,7.9162]
[1743261684843,6.51336182,126.45,126.36,34.6540226]
[1743261685036,15.8139,126.52,126.36,34.6540226]
[1743261685037,6.51336182,126.47,126.4,6.51336182]
[1743261685235,6.51336182,126.47,126.42,6.51336182]
[1743261685441,7.9111,126.46,126.43,28.08]
[1743261685946,7.96305551,126.46,126.43,28.14103241]
[1743261686653,7.9113,126.45,126.43,28.14103241]
[1743261688243,7.96285551,126.46,126.43,28.14103241]
[1743261691954,7.9113,126.45,126.43,28.14103241]
[1743261692660,7.96285551,126.46,126.43,28.14103241]
[1743261695556,7.9113,126.45,126.43,28.14103241]
[1743261698057,7.9118,126.44,126.43,28.14103241]
[1743261698259,7.9118,126.44,126.43,0.06103241]
[1743261698758,7.9138,126.41,126.38,43.77259675]
[1743261698959,7.9138,126.41,126.39,28.06]
[1743261699957,7.96773064,126.41,126.39,28.12022273]
[1743261700460,7.9143,126.4,126.39,28.12022273]
[1743261702057,7.9143,126.4,126.39,0.06022273]
[1743261705062,7.9171,126.36,126.32,458.35073811]
[1743261705262,6.51336182,126.37,126.34,28.08]
[1743261706368,7.9175,126.35,126.34,28.13520295]
[1743261710170,7.9175,126.35,126.34,0.05520295]
[1743261715168,14.43086182,126.35,126.34,0.05520295]
[1743261718075,7.9196,126.32,126.31,28.08]
[1743261721683,7.92,126.31,126.3,0.05476642]
[1743261724377,0.05517982,126.33,126.3,6.56812824]
[1743261724677,0.05517982,126.33,126.3,14.48842824]
[1743261724878,0.05517982,126.33,126.3,6.56812824]
[1743261725181,0.05517982,126.33,126.31,7.9195]
[1743261725385,0.05517982,126.33,126.32,28.08]
[1743261728585,7.97387982,126.33,126.32,28.08]
[1743261728984,0.05517982,126.33,126.32,28.08]
[1743261731785,7.97387982,126.33,126.32,28.08]
[1743261732986,7.92,126.31,126.3,0.05476642]
[1743261733288,14.43336182,126.31,126.3,0.05476642]
[1743261735987,6.51336182,126.31,126.3,0.05476642]
[1743261736191,0.05517982,126.33,126.3,0.05476642]
[1743261736387,0.05517982,126.33,126.31,28.08]
[1743261736688,0.05517982,126.33,126.32,7.9194]
[1743261742999,0.05517982,126.33,126.31,46.83328064]
[1743261749598,0.05517982,126.33,126.31,38.91358064]
[1743261750197,7.9194,126.32,126.31,38.91358064]
[1743261751000,7.9194,126.32,126.3,43.82736317]
[1743261751197,7.92,126.31,126.3,71.90736317]
[1743261754000,7.92,126.31,126.3,28.13476642]
[1743261754797,14.43336182,126.31,126.3,28.13476642]
[1743261755602,14.43336182,126.31,126.3,0.05476642]
[1743261756700,6.51336182,126.31,126.3,0.05476642]
[1743261759908,14.43336182,126.31,126.3,0.05476642]
[1743261760511,7.9212,126.29,126.28,10.83358064]
[1743261760702,11.55926564,126.29,126.27,120.7763924]
[1743261760904,11.55926564,126.29,126.22,51.60450525]
[1743261760905,33.12640177,126.28,126.22,51.60450525]
[1743261761108,14.43646182,126.26,126.22,51.60450525]
[1743261761614,19.47908198,126.26,126.22,51.60450525]
[1743261761800,19.47908198,126.26,126.24,274.55238373]
[1743261763706,7.9238,126.25,126.24,0.06058282]
[1743261765107,7.9276,126.19,126.17,364.0]
[1743261765313,6.51336182,126.2,126.17,28.08]
[1743261765913,7.9279,126.19,126.17,28.08]
[1743261766115,7.98882181,126.19,126.17,28.14083038]
[1743261766309,0.06092181,126.19,126.17,28.14083038]
[1743261766710,7.9281,126.18,126.17,28.14083038]
[1743261771415,7.98872181,126.19,126.17,28.14083038]
[1743261771818,7.98872181,126.19,126.17,0.06083038]
[1743261772017,7.98872181,126.19,126.17,28.16083038]
[1743261776221,0.06092181,126.19,126.17,36.08953038]
[1743261778422,6.51336182,126.24,126.18,6.51336182]
[1743261779122,6.51336182,126.24,126.17,28.1]
[1743261779315,6.51336182,126.22,126.17,28.1]
[1743261779513,0.05173671,126.21,126.18,0.05008276]
[1743261780720,7.9269,126.2,126.18,7.97818276]
[1743261781122,0.05173671,126.21,126.18,7.97818276]
[1743261781425,0.05173671,126.21,126.19,7.9274]
[1743261781617,0.05173671,126.21,126.2,28.1]
[1743261787625,0.05173671,126.21,126.2,36.0269]
[1743261787828,0.05173671,126.21,126.2,42.54026182]
[1743261788031,6.51336182,126.28,126.22,6.51336182]
[1743261788232,6.51336182,126.28,126.23,28.1]
[1743261788531,7.9237,126.26,126.23,36.0249]
[1743261788730,7.9237,126.26,126.23,28.1]
[1743261788930,6.51336182,126.28,126.23,28.1]
[1743261789129,7.9242,126.25,126.23,28.15047403]
[1743261789328,6.57228086,126.26,126.23,28.15047403]
[1743261789530,6.51336182,126.24,126.23,0.05047403]
[1743261789929,14.43776182,126.24,126.23,0.05047403]
[1743261791033,7.9263,126.21,126.2,364.0]
[1743261792734,7.9269,126.2,126.19,0.05791033]
[1743261794031,14.44026182,126.2,126.19,0.05791033]
[1743261795533,7.93,126.15,126.14,4.1952]
[1743261795733,7.93,126.15,126.14,32.2952]
[1743261796635,7.9296,126.16,126.14,32.2952]
[1743261796834,7.98328188,126.16,126.14,32.2952]
[1743261797034,7.98328188,126.16,126.14,32.3505256]
[1743261798439,7.93,126.15,126.14,32.3505256]
[1743261798836,7.93,126.15,126.14,28.1553256]
[1743261799137,7.93,126.15,126.14,0.0553256]
[1743261802944,0.05368188,126.16,126.14,0.0553256]
[1743261803344,0.05368188,126.16,126.14,2.2325256]
[1743261803546,0.05368188,126.16,126.15,7.93]
[1743261806643,0.05368188,126.16,126.14,12.1738256]
[1743261807139,7.98318188,126.16,126.14,12.1738256]
[1743261807537,7.98318188,126.16,126.14,2.2325256]
[1743261807849,7.93,126.15,126.14,0.0553256]
[1743261816248,41.54328188,126.16,126.14,0.0553256]
[1743261820252,7.93,126.15,126.14,0.0553256]
[1743261821154,33.61368188,126.16,126.14,0.0553256]
[1743261822551,33.61368188,126.16,126.14,7.9856256]
[1743261823054,33.61368188,126.16,126.14,0.0553256]
[1743261823255,41.54318188,126.16,126.14,0.0553256]
[1743261827559,33.61368188,126.16,126.15,36.03]
[1743261827761,33.61368188,126.16,126.15,42.54336182]
[1743261828063,280.91062303,126.24,126.18,7.9278]
[1743261828249,280.91062303,126.24,126.19,28.1]
[1743261828761,7.9267,126.21,126.19,28.1]
[1743261829065,7.98747275,126.21,126.19,28.16053411]
[1743261829857,7.9269,126.2,126.19,28.16053411]
[1743261831858,7.9269,126.2,126.19,0.06053411]
[1743261832461,14.44026182,126.2,126.19,0.06053411]
[1743261839968,7.9293,126.17,126.15,364.0]
[1743261840272,7.9293,126.17,126.14,34.61336182]
[1743261840978,7.9293,126.17,126.14,42.54366182]
[1743261841271,7.9885191,126.17,126.14,42.59617231]
[1743261844972,7.9885191,126.17,126.14,14.49617231]
[1743261845173,7.9885191,126.17,126.15,28.1]
[1743261845774,0.0592191,126.17,126.15,36.0299]
[1743261847579,0.0592191,126.17,126.16,7.9294]
[1743261853177,0.0592191,126.17,126.15,28.1]
[1743261853377,0.0592191,126.17,126.14,0.05251049]
[1743261853585,6.51336182,126.16,126.14,0.05251049]
[1743261853783,7.93,126.15,126.14,0.05251049]
[1743261875599,7.9325,126.11,126.1,364.0]
[1743261875895,6.51336182,126.11,126.05,370.51336182]
[1743261876200,7.9349,126.08,126.06,28.1]
[1743261876902,7.99105994,126.08,126.06,28.15520703]
[1743261877095,7.9351,126.07,126.06,28.15520703]
[1743261877399,0.05615994,126.08,126.06,0.05520703]
[1743261878097,7.99075994,126.08,126.06,0.05520703]
[1743261878596,7.9306,126.15,126.1,7.9329]
[1743261878798,6.51336182,126.18,126.11,28.1]
[1743261879096,6.51336182,126.16,126.11,28.1]
[1743261879297,6.51336182,126.14,126.11,28.1]
[1743261879997,6.56530576,126.14,126.11,28.16094522]
[1743261882899,14.49600576,126.14,126.11,28.16094522]
[1743261886803,14.49600576,126.14,126.11,36.09344522]
[1743261889304,0.05194394,126.14,126.11,28.16094522]
[1743261889905,0.05194394,126.14,126.13,7.9313]
[1743261890907,0.05194394,126.14,126.11,28.16094522]
[1743261892410,6.56530576,126.14,126.11,0.06094522]
[1743261893812,7.9318,126.13,126.11,0.06094522]
[1743261895021,7.9319,126.12,126.11,0.06094522]
[1743261903025,7.9344,126.08,126.07,392.1]
[1743261903224,7.9344,126.08,126.07,28.1]
[1743261904819,0.05722601,126.09,126.07,28.1]
[1743261905319,7.9344,126.08,126.07,28.1]
[1743261907929,7.9344,126.08,126.06,0.05665425]
[1743261908129,7.9344,126.08,126.07,28.1]
[1743261909928,0.05722601,126.09,126.07,28.1]
[1743261910429,7.9344,126.08,126.07,28.1]
[1743261911025,0.05722601,126.09,126.06,0.05665425]
[1743261911229,6.51336182,126.08,126.06,0.05665425]
[1743261911822,7.9351,126.07,126.06,0.05665425]
[1743261913227,7.9378,126.03,126.02,28.1]
[1743261913733,6.51336182,126.06,126.02,28.1]
[1743261913931,7.9372,126.04,126.02,28.1]
[1743261914432,7.99367071,126.04,126.02,28.16052873]
[1743261914830,7.9376,126.03,126.02,0.06052873]
[1743261915231,0.05647071,126.04,126.02,0.06052873]
[1743261915631,7.99367071,126.04,126.02,0.06052873]
[1743261916838,7.9376,126.03,126.02,0.06052873]
[1743261920940,7.9412,125.98,125.96,4.173]
[1743261921129,7.9412,125.98,125.97,28.12]
[1743261921935,6.51336182,126.0,125.95,364.0]
[1743261922140,0.05784743,125.99,125.96,0.05909596]
[1743261922538,7.9407,125.98,125.96,0.05909596]
[1743261923438,0.05784743,125.99,125.97,6.51336182]
[1743261923634,0.05784743,125.99,125.98,28.34]
[1743261924641,7.99794743,125.99,125.98,28.34]
[1743261934248,0.05784743,125.99,125.98,28.34]
[1743261935147,0.05784743,125.99,125.98,36.2807]
[1743261935850,15.59,126.0,125.98,29.76698474]
[1743261936049,15.59,126.0,125.98,34.85336182]
[1743261936550,15.59,126.0,125.98,42.79356182]
[1743261936943,15.64885719,126.0,125.99,7.9401]
[1743261937145,15.64885719,126.0,125.99,9.36700318]
[1743261942346,15.64885719,126.0,125.99,373.36700318]
[1743261944654,7.9372,126.04,126.01,7.9384]
[1743261944848,7.9372,126.04,126.02,28.36]
[1743261945852,7.98969852,126.04,126.02,28.42068339]
[1743261946052,7.98969852,126.04,126.02,36.35888339]
[1743261946351,0.05249852,126.04,126.02,34.93404521]
[1743261946753,0.05249852,126.04,126.03,7.9376]
[1743261962765,6.51336182,126.09,126.02,398.93404521]
[1743261962970,7.9331,126.11,126.07,6.51336182]
[1743261963172,7.9331,126.11,126.08,28.22]
[1743261963767,7.9332,126.1,126.08,36.207143]
[1743261964073,0.05972048,126.11,126.08,28.272743]
[1743261964268,7.9338,126.09,126.08,28.272743]
[1743261964463,0.05972048,126.11,126.08,28.272743]
[1743261965274,7.9336,126.1,126.08,28.272743]
[1743261966269,7.9338,126.09,126.08,28.272743]
[1743261966772,7.9335,126.1,126.08,28.272743]
[1743261966972,0.05972048,126.11,126.08,28.272743]
[1743261967365,7.9336,126.1,126.08,28.272743]